bitfinex/quotes_SOLUSD_20260119
["timestamp","ask_amount","ask_price","bid_price","bid_amount"]
[1768782433769,16.34,133.5,133.48,11.47984569]
[1768782433966,16.28000001,133.5,133.47,11.47984569]
[1768782434667,4.37552847,133.53,133.49,11.47984569]
[1768782434989,4.37552847,133.53,133.47,7.49208832]
[1768782434990,16.34,133.53,133.52,11.47984569]
[1768782435373,16.34,133.53,133.45,18.93341182]
[1768782435582,16.34,133.53,133.51,11.47984569]
[1768782435788,16.34,133.53,133.45,18.93341182]
[1768782436082,20.71552847,133.53,133.49,11.47984569]
[1768782436282,20.71552847,133.53,133.5,11.47984569]
[1768782436682,4.37552847,133.52,133.45,0.2]
[1768782436996,11.8639319,133.54,133.51,11.47984569]
[1768782437195,16.34,133.51,133.47,11.85896064]
[1768782437491,16.34,133.51,133.5,11.47984569]
[1768782437795,4.37552847,133.57,133.5,11.47984569]
[1768782437999,4.37552847,133.59,133.56,11.47984569]
[1768782438203,16.34,133.58,133.56,11.47984569]
[1768782438494,16.34,133.58,133.48,5.34408856]
[1768782438686,16.34,133.58,133.48,16.4218908]
[1768782438888,16.34,133.58,133.57,6.91893836]
[1768782439095,16.34,133.58,133.48,25.4726381]
[1768782439284,4.37552847,133.57,133.55,6.91893836]
[1768782439475,4.37552847,133.57,133.54,6.91893836]
[1768782439677,4.37552847,133.57,133.49,7.49117204]
[1768782439876,4.37552847,133.56,133.52,6.91893836]
[1768782440807,4.37552847,133.53,133.48,6.91893836]
[1768782440989,4.37552847,133.52,133.46,7.49242819]
[1768782441183,16.34,133.51,133.48,6.91893836]
[1768782441604,16.34,133.51,133.47,7.49231137]
[1768782441808,4.37552847,133.5,133.45,7.49302648]
[1768782442113,20.71552847,133.51,133.45,7.49302648]
[1768782442406,20.71552847,133.51,133.47,6.91893836]
[1768782442782,4.42140108,133.5,133.44,7.49389996]
[1768782442999,4.42140108,133.5,133.46,11.53001022]
[1768782443192,11.91259892,133.49,133.44,11.53001022]
[1768782443500,4.42140108,133.48,133.44,11.53001022]
[1768782443703,4.36140109,133.48,133.44,11.53001022]
[1768782444012,11.53001022,133.48,133.42,0.1]
[1768782444178,26.21919244,133.49,133.42,0.1]
[1768782444377,11.53001022,133.44,133.42,1e-08]
[1768782444689,16.34,133.43,133.42,1e-08]
[1768782445992,16.34,133.44,133.42,1e-08]
[1768782446303,26.20937546,133.54,133.38,30.88674001]
[1768782446304,4.42140108,133.42,133.38,30.88674001]
[1768782446607,16.34,133.41,133.38,30.88671228]
[1768782446905,4.42140108,133.44,133.4,7.49617291]
[1768782447091,28.25553351,133.44,133.39,19.02665417]
[1768782447295,20.76140108,133.44,133.39,19.02665417]
[1768782447884,20.76140108,133.44,133.39,7.49664395]
[1768782448083,20.76140108,133.44,133.39,19.02665417]
[1768782448306,11.91422961,133.47,133.4,11.53001022]
[1768782448483,20.76140108,133.46,133.41,11.53001022]
[1768782448682,4.42140108,133.46,133.41,11.53001022]
[1768782448881,16.34,133.45,133.41,11.53001022]
[1768782449601,16.34,133.45,133.41,19.0255762]
[1768782449779,37.44498955,133.53,133.43,11.53001022]
[1768782449979,4.42140108,133.49,133.45,11.53001022]
[1768782450686,4.42140108,133.49,133.44,11.53001022]
[1768782450896,4.42140108,133.47,133.42,11.53001022]
[1768782451099,15.9514113,133.47,133.42,11.53001022]
[1768782451298,7.49288176,133.46,133.39,26.29831818]
[1768782451495,4.42140108,133.44,133.39,19.02682407]
[1768782451699,32.3114113,133.44,133.38,30.88675188]
[1768782452005,20.78140108,133.44,133.38,42.4167621]
[1768782452193,32.3114113,133.44,133.38,42.4167621]
[1768782452382,11.53001022,133.42,133.38,23.38940858]
[1768782452799,15.9514113,133.4,133.38,23.38940858]
[1768782453003,4.42140108,133.38,133.31,18.8527258]
[1768782453182,32.3114113,133.38,133.33,7.50017064]
[1768782453387,32.3114113,133.38,133.33,11.53001022]
[1768782453602,15.9514113,133.36,133.31,11.63001022]
[1768782453807,4.42140108,133.36,133.31,11.63001022]
[1768782454407,15.9514113,133.36,133.31,0.1]
[1768782454707,20.78140108,133.38,133.31,0.35999999]
[1768782454896,4.42140108,133.38,133.34,11.53001022]
[1768782455099,15.9514113,133.36,133.31,0.1]
[1768782455403,15.9514113,133.34,133.31,0.1]
[1768782455601,4.42140108,133.34,133.31,0.1]
[1768782456100,20.78140108,133.34,133.31,0.1]
[1768782456619,16.36,133.34,133.31,0.1]
[1768782456909,20.78140108,133.35,133.31,0.1]
[1768782457090,32.3114113,133.35,133.31,0.1]
[1768782457291,15.9514113,133.34,133.31,0.1]
[1768782457498,16.36,133.34,133.31,7.60131272]
[1768782457699,4.39072466,133.42,133.34,0.25999999]
[1768782457898,15.92073488,133.4,133.31,26.35459454]
[1768782458098,11.53001022,133.39,133.33,11.53001022]
[1768782458415,15.92073488,133.39,133.33,11.53001022]
[1768782458600,4.39072466,133.39,133.31,7.86131271]
[1768782458908,20.75072466,133.41,133.36,11.53001022]
[1768782459108,4.39072466,133.43,133.34,0.25999999]
[1768782459416,20.75072466,133.43,133.35,0.25999999]
[1768782459591,4.39072466,133.45,133.41,11.53001022]
[1768782459991,37.4426892,133.54,133.42,11.53001022]
[1768782459992,15.92073488,133.48,133.42,11.53001022]
[1768782460191,4.39072466,133.45,133.36,26.50475102]
[1768782460502,15.92073488,133.44,133.38,11.53001022]
[1768782460904,4.39072466,133.44,133.39,11.53001022]
[1768782461308,11.88485043,133.44,133.39,11.53001022]
[1768782461695,4.39072466,133.44,133.39,7.49657012]
[1768782461915,4.39072466,133.44,133.38,7.49727171]
[1768782461916,11.88475528,133.44,133.38,7.49727171]
[1768782462093,4.39072466,133.44,133.41,11.53001022]
[1768782462293,4.39072466,133.44,133.39,7.4966311]
[1768782462493,4.39072466,133.44,133.4,11.53001022]
[1768782462898,4.39072466,133.44,133.41,11.53001022]
[1768782463514,4.39072466,133.47,133.43,11.53001022]
[1768782463700,4.39072466,133.47,133.44,11.53001022]
[1768782464120,4.39072466,133.47,133.41,7.49532052]
[1768782464312,4.39072466,133.47,133.44,11.53001022]
[1768782464508,7.4906367,133.5,133.44,11.53001022]
[1768782464709,4.39072466,133.52,133.47,11.53001022]
[1768782464911,7.48910285,133.53,133.48,6.92767312]
[1768782464912,20.75072466,133.51,133.48,6.92767312]
[1768782465311,11.87912118,133.54,133.5,6.92767312]
[1768782465497,4.39072466,133.54,133.51,6.92767312]
[1768782465817,4.39072466,133.51,133.38,10.46254113]
[1768782466036,42.56974695,133.54,133.36,7.49810279]
[1768782466037,5.34408856,133.49,133.36,7.49810279]
[1768782466201,6.92767312,133.37,133.24,0.2959161]
[1768782466403,16.36,133.36,133.27,6.92767312]
[1768782466604,16.36,133.36,133.28,6.92767312]
[1768782467125,16.36,133.36,133.31,6.92767312]
[1768782467311,16.36,133.36,133.32,6.92767312]
[1768782467517,16.36,133.36,133.31,7.50090176]
[1768782467712,6.92767312,133.34,133.28,25.68468052]
[1768782468026,6.92767312,133.34,133.29,14.43001908]
[1768782468406,4.39072466,133.35,133.3,14.42943024]
[1768782468609,11.31839778,133.38,133.32,14.42824546]
[1768782468939,16.36,133.37,133.33,11.55010598]
[1768782469304,4.39072466,133.36,133.32,7.50057234]
[1768782469504,4.39072466,133.36,133.32,19.05067832]
[1768782469824,4.39072466,133.36,133.32,7.50057234]
[1768782470212,4.39072466,133.36,133.31,7.50117689]
[1768782470511,4.39072466,133.36,133.31,19.05128287]
[1768782470726,23.43937856,133.36,133.31,7.50117689]
[1768782471038,15.94083064,133.34,133.29,7.50203854]
[1768782471203,11.55010598,133.34,133.29,7.50203854]
[1768782471407,15.94083064,133.3,133.24,30.31292264]
[1768782471708,4.39072466,133.29,133.24,7.50525367]
[1768782471912,15.94083064,133.29,133.24,7.50525367]
[1768782472320,4.39072466,133.29,133.24,19.05535965]
[1768782472520,27.91010598,133.3,133.24,19.05535965]
[1768782472709,16.36,133.3,133.25,11.55010598]
[1768782472915,15.82948853,133.29,133.24,7.50525367]
[1768782473210,4.27938255,133.29,133.24,7.50525367]
[1768782473408,15.82948853,133.29,133.24,7.50525367]
[1768782473824,11.55010598,133.28,133.22,18.76572189]
[1768782474018,15.82948853,133.27,133.23,7.50575295]
[1768782474229,11.55010598,133.26,133.19,0.3959161]
[1768782474421,15.82948853,133.27,133.21,11.55010598]
[1768782474813,15.82948853,133.27,133.2,18.76771096]
[1768782475015,15.85040772,133.27,133.21,11.57102517]
[1768782475629,15.85040772,133.25,133.21,7.50687608]
[1768782475925,4.27938255,133.25,133.19,7.50759706]
[1768782476127,4.27938255,133.24,133.19,19.07862223]
[1768782476334,20.63938255,133.24,133.2,7.5073853]
[1768782476534,4.27938255,133.26,133.19,11.57102517]
[1768782476824,32.21040772,133.25,133.2,7.50735314]
[1768782477213,4.27938255,133.25,133.21,19.07789065]
[1768782477406,16.36,133.26,133.21,7.50686548]
[1768782477614,20.63938255,133.26,133.19,7.50807117]
[1768782478028,20.63938255,133.26,133.23,11.57102517]
[1768782478330,16.36,133.28,133.23,11.57102517]
[1768782478533,20.63938255,133.28,133.23,11.57102517]
[1768782479029,15.85040772,133.26,133.19,26.27824911]
[1768782479239,15.85040772,133.26,133.2,11.57102517]
[1768782479730,4.27938255,133.25,133.2,11.57102517]
[1768782479929,4.27938255,133.25,133.21,11.57102517]
[1768782480135,4.27938255,133.25,133.2,7.50745086]
[1768782480509,20.63938255,133.28,133.2,26.67213572]
[1768782480711,16.38,133.29,133.25,11.57102517]
[1768782481118,20.65938255,133.29,133.24,11.57102517]
[1768782481313,20.65938255,133.29,133.25,11.57102517]
[1768782481513,37.48687959,133.38,133.28,11.57102517]
[1768782481514,16.38,133.32,133.28,11.57102517]
[1768782481724,20.65938255,133.32,133.28,11.57102517]
[1768782481934,4.27938255,133.32,133.28,11.57102517]
[1768782482240,11.78041896,133.32,133.27,11.57102517]
[1768782482427,4.27938255,133.29,133.23,7.50564487]
[1768782482742,4.27938255,133.27,133.22,19.07740005]
[1768782482940,4.27938255,133.27,133.15,54.17530424]
[1768782482941,4.27938255,133.33,133.26,11.57102517]
[1768782483144,4.27938255,133.33,133.23,7.50579939]
[1768782483145,4.27938255,133.32,133.27,11.57102517]
[1768782483447,4.27938255,133.32,133.23,7.90171549]
[1768782483740,4.27938255,133.32,133.28,11.57102517]
[1768782484127,4.27938255,133.32,133.21,0.3959161]
[1768782484128,4.27938255,133.3,133.21,0.3959161]
[1768782484518,4.27938255,133.3,133.26,11.57102517]
[1768782484720,4.27938255,133.29,133.24,7.5051273]
[1768782484917,4.27938255,133.28,133.23,7.50568491]
[1768782485328,4.27938255,133.28,133.24,7.50519455]
[1768782485535,4.27938255,133.28,133.24,19.07621972]
[1768782486248,4.27938255,133.28,133.25,11.57102517]
[1768782486419,4.27938255,133.28,133.24,7.50519455]
[1768782486619,4.27938255,133.28,133.23,7.5053924]
[1768782486828,4.27938255,133.28,133.24,19.07608399]
[1768782487233,4.27938255,133.28,133.24,7.50505882]
[1768782487436,4.27938255,133.28,133.23,7.50565587]
[1768782487743,4.27938255,133.28,133.24,11.57102517]
[1768782488643,4.27938255,133.33,133.25,0.3959161]
[1768782488944,4.27938255,133.33,133.26,0.3959161]
[1768782489258,0.2,133.45,133.26,0.3959161]
[1768782489259,4.27938255,133.35,133.31,11.57102517]
[1768782489448,4.27938255,133.35,133.24,26.66423875]
[1768782489747,4.27938255,133.34,133.24,26.66423875]
[1768782489914,4.27938255,133.34,133.29,11.57102517]
[1768782490119,4.27938255,133.33,133.28,11.57102517]
[1768782490326,20.65938255,133.33,133.29,11.57102517]
[1768782490522,4.27938255,133.33,133.28,7.50281826]
[1768782490845,4.27938255,133.31,133.25,7.5046355]
[1768782491139,4.27938255,133.3,133.24,0.3959161]
[1768782491333,4.27938255,133.3,133.25,14.45469437]
[1768782491536,4.27938255,133.3,133.25,7.50431063]
[1768782491840,4.27938255,133.3,133.21,19.16292861]
[1768782492045,4.27938255,133.29,133.24,14.45555414]
[1768782492225,4.27938255,133.29,133.25,14.45486835]
[1768782492426,4.27938255,133.29,133.26,6.95038374]
[1768782492718,4.27938255,133.29,133.25,26.26621068]
[1768782492923,4.27938255,133.29,133.26,6.95038374]
[1768782493134,4.27938255,133.29,133.25,14.45486835]
[1768782493337,4.27938255,133.28,133.22,7.50599268]
[1768782493540,4.27938255,133.28,133.24,6.95038374]
[1768782493922,4.27938255,133.26,133.21,14.45682536]
[1768782494117,4.27938255,133.26,133.21,14.45717939]
[1768782494316,4.27938255,133.26,133.22,6.95038374]
[1768782494737,4.27938255,133.26,133.21,6.95038374]
[1768782494947,4.27938255,133.26,133.22,6.95038374]
[1768782495450,4.27938255,133.26,133.23,6.95038374]
[1768782495957,4.27938255,133.26,133.24,6.95038374]
[1768782496448,4.27938255,133.26,133.2,6.95038374]
[1768782496449,4.27938255,133.29,133.25,14.4548542]
[1768782496653,4.27938255,133.29,133.26,6.95038374]
[1768782497052,4.27938255,133.32,133.28,6.95038374]
[1768782497459,4.27938255,133.32,133.25,7.50447046]
[1768782497757,4.27938255,133.31,133.24,7.50505533]
[1768782497958,4.27938255,133.31,133.2,6.95038374]
[1768782498127,4.27938255,133.31,133.27,6.95038374]
[1768782498439,4.27938255,133.31,133.28,6.95038374]
[1768782498637,11.77963201,133.33,133.29,6.95038374]
[1768782498839,4.27938255,133.33,133.27,7.50330306]
[1768782499038,7.49965928,133.34,133.27,7.50330306]
[1768782499039,4.27938255,133.35,133.27,26.65812964]
[1768782499289,4.27938255,133.35,133.31,6.95038374]
[1768782499430,4.27938255,133.35,133.27,26.65812964]
[1768782499636,4.27938255,133.35,133.31,6.95038374]
[1768782500550,4.27938255,133.34,133.31,6.95038374]
[1768782500750,4.27938255,133.34,133.3,6.95038374]
[1768782501543,4.27938255,133.33,133.3,6.95038374]
[1768782503044,4.27938255,133.33,133.29,7.50232772]
[1768782503251,4.21147325,133.32,133.28,7.50297133]
[1768782503566,4.21147325,133.32,133.28,6.95038374]
[1768782504648,4.21147325,133.31,133.28,6.95038374]
[1768782504855,4.21147325,133.31,133.28,14.45336576]
[1768782505041,4.21147325,133.31,133.28,6.95038374]
[1768782505242,4.21147325,133.31,133.26,6.95038374]
[1768782505457,4.21147325,133.31,133.27,6.95038374]
[1768782505958,6.95038374,133.33,133.21,37.53394545]
[1768782505959,4.21147325,133.33,133.29,6.95038374]
[1768782506177,4.21147325,133.33,133.31,6.95038374]
[1768782506840,4.21147325,133.32,133.28,6.95038374]
[1768782507040,11.71177245,133.33,133.3,6.95038374]
[1768782507454,4.21147325,133.33,133.3,6.95038374]
[1768782507654,11.71169395,133.33,133.28,7.5028299]
[1768782507862,11.71169395,133.33,133.29,6.95038374]
[1768782508272,4.21147325,133.33,133.26,19.1555565]
[1768782508475,11.71170773,133.33,133.29,6.95038374]
[1768782508643,42.07885615,133.35,133.22,7.50638042]
[1768782508644,4.21147325,133.29,133.22,7.50638042]
[1768782508852,4.21147325,133.27,133.22,6.95038374]
[1768782509168,4.21147325,133.27,133.21,7.50676654]
[1768782509169,4.21147325,133.27,133.23,6.95038374]
[1768782509665,4.21147325,133.27,133.2,0.3959161]
[1768782509666,4.21147325,133.27,133.2,7.50733217]
[1768782509848,4.21147325,133.25,133.18,0.3959161]
[1768782510055,4.21147325,133.24,133.19,6.95038374]
[1768782510461,4.21147325,133.23,133.18,6.95038374]
[1768782510660,4.21147325,133.18,133.12,7.90751677]
[1768782510970,4.21147325,133.17,133.1,0.1]
[1768782511170,4.21147325,133.15,133.1,1e-08]
[1768782511346,4.21147325,133.1,133.04,30.42772424]
[1768782511971,4.21147325,133.09,133.04,30.42772424]
[1768782512140,4.21147325,133.09,133.05,6.95038374]
[1768782512545,11.72567037,133.09,133.04,23.4773405]
[1768782512967,11.72567037,133.09,133.04,30.42772424]
[1768782513165,4.21147325,133.09,133.04,23.4773405]
[1768782513345,4.21147325,133.32,133.07,6.95038374]
[1768782513545,4.21147325,133.17,133.11,6.95038374]
[1768782513953,4.21147325,133.17,133.09,0.49591611]
[1768782513954,4.21147325,133.17,133.1,6.95038374]
[1768782514547,16.38,133.23,133.05,14.96227128]
[1768782514548,11.72333558,133.13,133.05,14.96227128]
[1768782514846,4.21147325,133.11,133.05,14.96227128]
[1768782515046,4.21147325,133.09,133.04,23.4773405]
[1768782515358,4.15147326,133.09,133.04,23.4773405]
[1768782516639,4.15147326,133.09,133.04,30.42772424]
[1768782517147,11.6652057,133.09,133.04,23.4773405]
[1768782518765,11.6652057,133.09,133.04,30.42772424]
[1768782519371,4.43860061,133.11,133.06,6.95038374]
[1768782520872,11.95000552,133.14,133.07,6.95038374]
[1768782521059,11.94838467,133.16,133.11,6.95038374]
[1768782521368,11.94600951,133.21,133.15,6.95038374]
[1768782521686,4.43860061,133.2,133.13,0.5559161]
[1768782521850,4.43860061,133.2,133.16,6.95038374]
[1768782522049,4.43860061,133.2,133.13,0.5559161]
[1768782522349,4.43860061,133.22,133.18,6.95038374]
[1768782522573,6.95038374,133.29,133.21,6.95038374]
[1768782522574,4.43860061,133.27,133.21,6.95038374]
[1768782522764,4.43860061,133.27,133.22,6.95038374]
[1768782523275,6.95038374,133.29,133.24,6.95038374]
[1768782523276,4.43860061,133.29,133.24,6.95038374]
[1768782523452,4.43860061,133.29,133.21,0.5559161]
[1768782523651,4.43860061,133.29,133.23,6.95038374]
[1768782524550,4.43860061,133.29,133.24,6.95038374]
[1768782524852,4.43860061,133.29,133.22,26.27233147]
[1768782525049,4.43860061,133.29,133.24,6.95038374]
[1768782525374,7.50124513,133.32,133.26,6.95038374]
[1768782525375,4.43860061,133.31,133.26,6.95038374]
[1768782525586,4.43860061,133.3,133.23,6.95038374]
[1768782525755,4.43860061,133.29,133.23,6.95038374]
[1768782525954,4.43860061,133.28,133.22,14.45676416]
[1768782526774,4.43860061,133.27,133.22,14.45676416]
[1768782527181,4.43860061,133.31,133.26,6.95038374]
[1768782527686,4.43860061,133.31,133.25,6.95038374]
[1768782527848,4.43860061,133.34,133.27,6.95038374]
[1768782528054,4.43860061,133.34,133.28,6.95038374]
[1768782528558,4.43860061,133.34,133.29,6.95038374]
[1768782528559,4.43860061,133.33,133.29,6.95038374]
[1768782528765,4.43860061,133.33,133.28,7.50249036]
[1768782528985,4.43860061,133.33,133.26,18.75965839]
[1768782528986,4.43860061,133.33,133.29,14.45279001]
[1768782529158,4.43860061,133.35,133.29,14.45279001]
[1768782529477,4.43860061,133.35,133.31,6.95038374]
[1768782529863,4.43860061,133.35,133.3,6.95038374]
[1768782530760,4.43860061,133.34,133.28,14.45338494]
[1768782531072,4.43860061,133.34,133.28,7.5030012]
[1768782531283,11.93486843,133.4,133.33,6.95038374]
[1768782531578,4.43860061,133.4,133.36,6.95038374]
[1768782531781,4.43860061,133.4,133.32,0.5559161]
[1768782531966,4.43860061,133.39,133.35,6.95038374]
[1768782532277,4.43860061,133.41,133.36,6.95038374]
[1768782532478,11.93450699,133.41,133.35,6.95038374]
[1768782532664,4.43860061,133.41,133.35,14.44902713]
[1768782532866,11.93443653,133.41,133.35,14.44902713]
[1768782533092,4.28164523,133.43,133.38,6.95038374]
[1768782533897,4.28164523,133.43,133.39,6.95038374]
[1768782534068,4.48164523,133.45,133.4,6.95038374]
[1768782534387,11.97510139,133.45,133.37,0.5559161]
[1768782534592,4.48164523,133.45,133.4,6.95038374]
[1768782534799,0.2,133.45,133.41,14.44607371]
[1768782535283,0.2,133.45,133.4,14.44658582]
[1768782535484,4.48164523,133.45,133.4,14.44658582]
[1768782535689,4.48164523,133.45,133.41,6.95038374]
[1768782535888,4.48164523,133.45,133.4,14.44658582]
[1768782536198,4.28164523,133.5,133.44,6.95038374]
[1768782536497,4.28164523,133.5,133.45,6.95038374]
[1768782536976,4.28164523,133.5,133.46,6.92888737]
[1768782537293,4.28164523,133.53,133.45,0.5559161]
[1768782537485,4.28164523,133.53,133.48,6.92888737]
[1768782538372,6.92888737,133.55,133.5,6.92888737]
[1768782538373,4.28164523,133.55,133.5,6.92888737]
[1768782538589,4.28164523,133.55,133.51,6.92888737]
[1768782538992,4.28164523,133.54,133.45,0.5559161]
[1768782539295,4.28164523,133.51,133.45,6.92888737]
[1768782539492,4.28164523,133.51,133.46,6.92888737]
[1768782539678,4.28164523,133.51,133.47,6.92888737]
[1768782539878,4.28164523,133.51,133.46,14.42162512]
[1768782540080,4.28164523,133.5,133.44,14.42276379]
[1768782540271,4.28164523,133.49,133.41,0.5559161]
[1768782540495,4.28164523,133.48,133.43,7.49412481]
[1768782540794,4.28164523,133.48,133.43,7.49445002]
[1768782540992,4.28164523,133.48,133.43,6.92888737]
[1768782541297,4.28164523,133.48,133.44,6.92888737]
[1768782541489,4.28164523,133.52,133.47,6.92888737]
[1768782541792,4.28164523,133.52,133.44,0.5559161]
[1768782541793,6.92888737,133.52,133.42,0.5559161]
[1768782542096,4.28164523,133.51,133.46,6.92888737]
[1768782542484,4.28164523,133.51,133.42,0.5559161]
[1768782542688,4.28164523,133.51,133.45,6.92888737]
[1768782542873,4.28164523,133.51,133.46,6.92888737]
[1768782543278,4.28164523,133.51,133.47,6.92888737]
[1768782543499,4.28164523,133.5,133.43,26.78689862]
[1768782543704,4.28164523,133.47,133.42,7.49496023]
[1768782544284,4.28164523,133.47,133.42,14.4238476]
[1768782544495,4.28164523,133.46,133.41,7.4955754]
[1768782544997,4.28164523,133.46,133.42,3.6]
[1768782545175,4.28164523,133.46,133.42,10.52888737]
[1768782545381,4.28164523,133.46,133.42,3.6]
[1768782545598,4.28164523,133.46,133.41,6.92888737]
[1768782545983,4.28164523,133.48,133.43,6.92888737]
[1768782546195,4.28164523,133.48,133.44,6.92888737]
[1768782546486,4.28164523,133.5,133.45,6.92888737]
[1768782546690,4.28164523,133.5,133.44,6.92888737]
[1768782546994,4.28164523,133.5,133.45,14.4223306]
[1768782547390,4.28164523,133.5,133.45,7.49344323]
[1768782547587,4.28164523,133.5,133.45,14.4223306]
[1768782547785,4.28164523,133.5,133.46,6.92888737]
[1768782548381,11.77237704,133.5,133.45,14.4223306]
[1768782548577,4.28164523,133.49,133.45,7.49344323]
[1768782548784,4.28164523,133.52,133.47,6.92888737]
[1768782548977,4.28164523,133.51,133.47,6.92888737]
[1768782549401,4.28164523,133.5,133.45,7.49329914]
[1768782549608,4.28164523,133.5,133.43,19.29191791]
[1768782549609,4.28164523,133.5,133.46,14.42171923]
[1768782549991,25.65227297,133.53,133.47,14.42104333]
[1768782549992,30.49453261,133.53,133.47,14.42104333]
[1768782550209,4.28164523,133.53,133.5,6.92888737]
[1768782550414,37.61656676,133.64,133.47,7.49215596]
[1768782550415,14.93371662,134.01,133.48,12.25948941]
[1768782550618,30.03036403,134.11,133.83,27.71554948]
[1768782550903,49.19953907,134.11,133.93,6.92888737]
[1768782551100,37.91977298,134.09,133.84,63.50866706]
[1768782551278,19.15401982,134.1,133.98,6.92888737]
[1768782551484,19.15401982,134.1,133.84,63.50866706]
[1768782551485,7.99663533,134.08,133.85,4.45103921]
[1768782551685,42.46005297,134.1,133.94,6.92888737]
[1768782552010,16.36,134.09,133.94,6.92888737]
[1768782552198,23.28888737,134.09,133.97,6.92888737]
[1768782552401,16.36,134.09,133.97,6.92888737]
[1768782552601,16.36,134.09,133.92,6.92888737]
[1768782552602,4.28164523,134.05,133.92,6.92888737]
[1768782552801,4.28164523,134.03,133.92,6.92888737]
[1768782553103,4.28164523,133.97,133.8,4.45103921]
[1768782553304,4.28164523,133.95,133.82,11.4477789]
[1768782553514,4.28164523,133.91,133.8,11.4477789]
[1768782553810,4.28164523,133.89,133.79,7.47440017]
[1768782554194,4.28164523,133.89,133.8,11.4477789]
[1768782554407,4.28164523,133.89,133.74,4.45103921]
[1768782554608,4.28164523,133.85,133.74,11.4477789]
[1768782554786,4.28164523,133.85,133.71,4.45103921]
[1768782554787,4.28164523,133.83,133.73,11.4477789]
[1768782554987,4.28164523,133.79,133.7,11.4477789]
[1768782555308,4.28164523,133.79,133.69,11.4477789]
[1768782555499,4.28164523,133.79,133.71,18.92611273]
[1768782555703,4.28164523,133.77,133.67,23.15326792]
[1768782556007,4.28164523,133.75,133.69,18.9272655]
[1768782556387,4.28164523,133.75,133.7,7.47941666]
[1768782556706,4.28164523,133.75,133.69,11.4477789]
[1768782556885,16.34,133.74,133.71,18.92640008]
[1768782557213,4.28164523,133.75,133.71,18.92640008]
[1768782557516,16.34,133.74,133.71,18.92640008]
[1768782557687,16.34,133.74,133.67,4.45103921]
[1768782557688,20.62164523,133.74,133.67,11.4477789]
[1768782557883,4.28164523,133.73,133.65,11.4477789]
[1768782558087,4.28164523,133.72,133.62,11.4477789]
[1768782558511,4.28164523,133.72,133.66,11.4477789]
[1768782558810,4.28164523,133.7,133.66,7.48161224]
[1768782558997,4.28164523,133.69,133.6,11.4477789]
[1768782559714,4.28164523,133.69,133.62,7.48339959]
[1768782559911,4.28164523,134.17,133.62,7.48339959]
[1768782560092,11.5477789,134.4,133.99,3.89881643]
[1768782560290,11.5477789,134.4,133.93,3.90076716]
[1768782560291,37.29518657,134.23,133.93,3.90076716]
[1768782560487,11.4477789,134.13,133.97,11.4477789]
[1768782560710,11.4477789,134.13,133.93,8.35180637]
[1768782560711,11.4477789,134.1,133.93,8.35180637]
[1768782560888,37.72723925,134.25,134.02,11.4477789]
[1768782561089,11.4477789,134.21,134.06,11.4477789]
[1768782561290,11.4477789,134.18,134.0,11.4477789]
[1768782561610,26.08825282,134.16,134.01,7.46212969]
[1768782561911,16.34,134.15,134.02,11.4477789]
[1768782562116,11.4477789,134.13,133.99,11.4477789]
[1768782562318,11.4477789,134.13,133.76,11.4477789]
[1768782562319,11.4477789,134.1,133.94,11.4477789]
[1768782562498,11.4477789,134.05,133.93,8.35180637]
[1768782562815,11.4477789,134.03,133.93,8.35180637]
[1768782563705,7.46157289,134.02,133.94,7.46594969]
[1768782564212,27.7677789,134.01,133.93,3.90076716]
[1768782564615,11.4477789,133.99,133.93,3.90076716]
[1768782564805,7.46157289,134.02,133.93,3.90076716]
[1768782565207,16.32,134.01,133.93,3.90076716]
[1768782565517,16.32,134.0,133.93,3.90076716]
[1768782565822,16.32,134.0,133.93,11.36721974]
[1768782566126,11.4477789,133.97,133.86,30.12321426]
[1768782566305,11.4477789,133.97,133.86,4.10269545]
[1768782566838,26.11988512,134.0,133.9,11.4477789]
[1768782567002,26.11988512,134.0,133.89,4.10269545]
[1768782567200,16.32,133.99,133.91,7.46753575]
[1768782567516,16.32,133.98,133.89,11.57099485]
[1768782568005,27.7677789,133.98,133.89,11.57099485]
[1768782568199,16.32,133.97,133.89,23.01877375]
[1768782568407,30.10449531,134.0,133.89,23.01877375]
[1768782568720,27.11853942,134.44,133.92,4.10269545]
[1768782568897,19.7708051,134.44,134.24,4.10269545]
[1768782569218,32.46,134.43,134.11,4.10269545]
[1768782569520,32.46,134.43,133.92,11.4477789]
[1768782569521,11.4477789,134.2,134.08,4.10269545]
[1768782569818,22.48,134.39,134.08,11.4477789]
[1768782570015,116.56401249,134.43,134.16,4.10269545]
[1768782570213,11.4477789,134.31,134.2,4.10269545]
[1768782570609,11.4477789,134.25,134.13,4.10269545]
[1768782570801,11.4477789,134.25,134.18,7.45259435]
[1768782570802,16.3,134.24,134.18,7.45259435]
[1768782571005,16.3,134.23,134.18,7.45259435]
[1768782571204,21.64408856,134.23,134.16,7.4532931]
[1768782571405,15.65277357,134.21,134.11,4.10269545]
[1768782571613,9.54908323,134.2,134.11,4.10269545]
[1768782571812,20.99686213,134.19,134.11,4.10269545]
[1768782572317,15.65277357,134.15,134.08,7.45823389]